[Event "1st Barreau de Paris 2019"]
[Site "Paris"]
[Date "2019.12.18"]
[Round "5.4"]
[White "Mouhamad, Joachim"]
[Black "Maurizzi, Marc Andria"]
[Result "0-1"]
[ECO "D02"]
[WhiteElo "2293"]
[BlackElo "2404"]
[Annotator "NA"]
[PlyCount "114"]
[EventDate "2019.12.16"]
[EventType "tourn"]
[EventCountry "FRA"]
[SourceTitle "playchess.com"]
[Source "ChessBase"]
[SourceQuality "1"]
[TimeControl "5400+30"]

1. d4 {[%emt 0:00:00]} Nf6 {[%emt 0:00:00]} 2. Bf4 {[%emt 0:00:04]} d5 {[%emt 0:00:05]} 3. e3 {[%emt 0:00:13]} c5 {[%emt 0:00:27]} 4. Nf3 {[%emt 0:00:13]} e6 {[%emt 0:00:29]} 5. Nbd2 {[%emt 0:00:51]} Nc6 {[%emt 0:00:07]} 6. c3 {[%emt 0:00:44]} cxd4 {[%emt 0:00:51]} 7. exd4 {[%emt 0:01:03] D02: 1 d4 d5 2 Nf3 sidelines, including 2...Nf6 3 g3 and 2...Nf6 3 Bf4} Nh5 {[%emt 0:00:05]} 8. Be3 {[%emt 0:00:19]} (8. Bg5 f6 9. Be3 Bd6 10. g3 O-O 11. Nh4 g6 12. Be2 Ng7 13. O-O e5 14. dxe5 fxe5 {½-½ (59) Aronian,L (2767)-Nakamura,H (2777) chess.com INT 2018}) 8... Bd6 {[%emt 0:00:10]} 9. Ne5 {[%emt 0:00:10]} g6 {[%emt 0:00:16]} 10. Nd3 {[%emt 0:00:14]} Ng7 {[%emt 0:04:23]} 11. g3 {[%emt 0:00:07]} O-O {[%emt 0:01:34]} 12. Bg2 {[%emt 0:00:21]} b6 {[%emt 0:05:35]} 13. O-O {[%emt 0:05:27]} Ba6 $146 {[%emt 0:03:39]} ({Predecessor:} 13... Bb7 14. Nf3 Qc7 {0-1 (48) Radovanovic,M (2466)-Szabo,M (2307) Porto Carras 2018}) 14. Nf3 {[%emt 0:00:20]} Nf5 {[%emt 0:00:42]} 15. Re1 {[%emt 0:03:59]} Nce7 {[%emt 0:05:52]} 16. Bf4 {[%emt 0:07:55]} Bxd3 {[%emt 0:01:03]} 17. Bxd6 {[%emt 0:00:17]} Nxd6 {[%emt 0:00:08]} 18. Qxd3 {[%emt 0:00:07]} b5 {[%emt 0:04:01]} 19. h4 {[%emt 0:18:32]} Rb8 $11 {[%emt 0:08:10]} 20. a3 {[%emt 0:01:35]} h5 {[%emt 0:03:05]} 21. Ng5 {[%emt 0:02:05]} a5 {[%emt 0:04:20]} 22. Bf3 {[%emt 0:05:08]} Ndf5 {[%emt 0:03:47]} 23. Qe2 {[%emt 0:03:31]} Ng7 {[%emt 0:00:51]} 24. Qd2 {[%emt 0:06:03]} Qd6 {[%emt 0:04:49]} 25. Be2 {[%emt 0:02:24]} Ngf5 {[%emt 0:04:41]} 26. Bf1 {[%emt 0:02:52]} b4 {[%emt 0:06:25]} 27. cxb4 {[%emt 0:02:18]} axb4 {[%emt 0:00:07]} 28. a4 {[%emt 0:00:09]} Qb6 {[%emt 0:01:40]} 29. Nf3 {[%emt 0:00:28]} Nc6 {[%emt 0:00:17]} 30. Rad1 {[%emt 0:01:10]} Rfc8 {[%emt 0:06:39]} 31. Bb5 {[%emt 0:01:47]} Na7 {[%emt 0:03:12]} 32. Bf1 {[%emt 0:01:49]} b3 {[%emt 0:02:12]} 33. a5 {[%emt 0:15:56]} Qb4 {[%emt 0:04:09]} 34. Qg5 {[%emt 0:00:02]} Qe7 {[%emt 0:04:17]} 35. Qf4 {[%emt 0:00:01]} Qd6 {[%emt 0:03:12]} 36. Re5 {[%emt 0:00:02]} Qc7 {[%emt 0:01:36]} 37. Ba6 {[%emt 0:05:16]} Nc6 {[%emt 0:01:05]} 38. Rc1 {[%emt 0:02:34]} Qd8 {[%emt 0:03:10]} 39. Rxf5 {[%emt 0:04:24]} exf5 {[%emt 0:00:56]} 40. Bxc8 {[%emt 0:00:06]} Rxc8 {[%emt 0:00:02]} 41. Qh6 {[%emt 0:01:45]} Nxa5 {[%emt 0:12:21]} 42. Ra1 {[%emt 0:02:03]} Ra8 {[%emt 0:00:00]} 43. Ng5 {[%emt 0:01:26]} Qf6 {[%emt 0:00:00]} 44. Qh7+ {[%emt 0:02:08]} Kf8 {[%emt 0:00:00]} 45. Nf3 {[%emt 0:02:49]} Ra7 {[%emt 0:00:00]} 46. Ne5 {[%emt 0:01:35]} Qg7 {[%emt 0:00:00]} 47. Qxg7+ {[%emt 0:00:13]} Kxg7 {[%emt 0:00:00]} 48. Ra3 {[%emt 0:00:26]} Nc6 {[%emt 0:00:00]} 49. Rxa7 {[%emt 0:00:37]} Nxa7 {[%emt 0:00:00]} 50. Kf1 {[%emt 0:00:22]} Nb5 {[%emt 0:00:00]} 51. Nc6 {[%emt 0:00:17]} Kf6 {[%emt 0:00:32]} 52. Ke2 {[%emt 0:00:31]} f4 {[%emt 0:00:34]} 53. gxf4 {[%emt 0:01:05]} Kf5 {[%emt 0:00:07]} 54. Kf3 {[%emt 0:00:30]} f6 {[%emt 0:00:07]} 55. Ne7+ {[%emt 0:00:16]} Ke6 {[%emt 0:00:00]} 56. Nxg6 {[%emt 0:00:50]} Nxd4+ {[%emt 0:00:10]} 57. Ke3 {[%emt 0:00:19]} Nf5+ {[%emt 0:00:05]} 0-1

[Event "1st Barreau de Paris 2019"]
[Site "Paris"]
[Date "2019.12.19"]
[Round "7.5"]
[White "Sochacki, Wojtek"]
[Black "Mouhamad, Joachim"]
[Result "1-0"]
[ECO "E60"]
[WhiteElo "2320"]
[BlackElo "2293"]
[Annotator "NA"]
[PlyCount "143"]
[EventDate "2019.12.16"]
[EventType "tourn"]
[EventCountry "FRA"]
[SourceTitle "playchess.com"]
[Source "ChessBase"]
[SourceQuality "1"]
[TimeControl "5400+30"]

1. Nf3 {[%emt 0:00:00]} Nf6 {[%emt 0:00:00]} 2. c4 {[%emt 0:00:00]} g6 {[%emt 0:00:00]} 3. b3 {[%emt 0:00:00]} Bg7 {[%emt 0:00:00]} 4. Bb2 {[%emt 0:00:00]} O-O {[%emt 0:00:04]} 5. g3 {[%emt 0:00:28]} c5 {[%emt 0:00:21]} 6. Bg2 {[%emt 0:00:42]} Nc6 {[%emt 0:00:09]} 7. O-O {[%emt 0:00:51]} d6 {[%emt 0:05:04]} 8. d4 {[%emt 0:00:34]} Ne4 {[%emt 0:01:28]} 9. h3 {[%emt 0:03:00] E60: King's Indian: Unusual lines and Fianchetto Variation without Nc3} Rb8 $146 {[%emt 0:02:01]} ({Predecessor:} 9... Bf5 10. e3 Nf6 11. Nc3 cxd4 12. Nxd4 Bd7 13. Qe2 a6 14. Rfd1 Rc8 15. Rac1 Qa5 16. a3 Rfe8 {1-0 (33) Kramnik,V (2783)-Caruana,F (2811) Zuerich 2015}) 10. Nbd2 {[%emt 0:05:45]} Nxd2 {[%emt 0:00:29]} 11. Qxd2 {[%emt 0:00:02]} cxd4 {[%emt 0:00:37]} 12. Nxd4 {[%emt 0:00:40]} Nxd4 {[%emt 0:00:29]} 13. Bxd4 {[%emt 0:00:05]} Bxd4 {[%emt 0:00:57]} 14. Qxd4 {[%emt 0:00:06]} Qa5 {[%emt 0:01:26]} 15. h4 {[%emt 0:09:55]} Be6 {[%emt 0:01:37]} 16. Rfd1 {[%emt 0:01:11]} Rfc8 {[%emt 0:01:27]} 17. a4 {[%emt 0:08:44]} Rc5 {[%emt 0:02:57]} 18. Qd2 {[%emt 0:05:35]} Qxd2 {[%emt 0:01:20]} 19. Rxd2 {[%emt 0:00:01]} b6 {[%emt 0:04:39]} 20. e3 {[%emt 0:01:02]} Kg7 {[%emt 0:01:03]} 21. Kf1 {[%emt 0:04:43]} h6 {[%emt 0:01:21]} 22. Ke2 {[%emt 0:02:15]} Rbc8 $11 {[%emt 0:03:13]} 23. Rad1 {[%emt 0:17:22]} Bd7 {[%emt 0:06:53]} 24. Rd5 {[%emt 0:02:04]} Kf6 {[%emt 0:04:35]} 25. Kd3 {[%emt 0:10:23]} R5c7 {[%emt 0:04:29]} 26. e4 {[%emt 0:00:24]} Be6 {[%emt 0:05:39]} 27. Rb5 {[%emt 0:00:11]} Bg4 {[%emt 0:00:57]} 28. Ra1 {[%emt 0:00:38]} Bd7 {[%emt 0:00:16]} 29. Rb4 {[%emt 0:00:16]} Rc5 {[%emt 0:03:54]} 30. Ke3 {[%emt 0:01:56]} Ra5 {[%emt 0:01:18]} 31. Bf1 {[%emt 0:01:33]} g5 {[%emt 0:00:27]} 32. hxg5+ {[%emt 0:00:08]} hxg5 {[%emt 0:00:10]} 33. Bd3 {[%emt 0:00:12]} Rh8 {[%emt 0:00:23]} 34. Rb5 {[%emt 0:03:29]} Rb8 {[%emt 0:06:02]} 35. b4 {[%emt 0:00:05]} Rxb5 {[%emt 0:04:25]} 36. axb5 {[%emt 0:00:05]} Rb7 {[%emt 0:00:12]} 37. f4 {[%emt 0:02:01]} gxf4+ {[%emt 0:00:31]} 38. gxf4 {[%emt 0:00:02]} Rc7 {[%emt 0:00:20]} 39. Rf1 {[%emt 0:02:51]} Bc8 {[%emt 0:01:40]} 40. Kd4 {[%emt 0:01:17]} Rd7 {[%emt 0:11:17]} 41. Ke3 {[%emt 0:05:11]} Rc7 {[%emt 0:02:08]} 42. Rg1 {[%emt 0:03:07]} a6 {[%emt 0:08:53]} 43. bxa6 {[%emt 0:02:01]} Bxa6 {[%emt 0:00:03]} 44. b5 {[%emt 0:00:25]} Bc8 {[%emt 0:01:40]} 45. Rg8 {[%emt 0:00:29]} Rc5 {[%emt 0:02:35]} 46. Rd8 {[%emt 0:02:10]} Be6 {[%emt 0:01:24]} 47. Kd4 {[%emt 0:03:11]} Bc8 {[%emt 0:05:00]} 48. e5+ {[%emt 0:02:02]} dxe5+ {[%emt 0:00:40]} 49. fxe5+ {[%emt 0:00:01]} Kg5 {[%emt 0:03:27]} 50. Rg8+ {[%emt 0:00:54]} Kf4 {[%emt 0:00:27]} 51. Rf8 {[%emt 0:00:00]} Be6 {[%emt 0:01:25]} 52. Rb8 {[%emt 0:00:13]} Rc8 {[%emt 0:00:40]} 53. Rxb6 {[%emt 0:00:39]} Rd8+ {[%emt 0:00:01]} 54. Kc3 {[%emt 0:00:07]} Kxe5 {[%emt 0:00:12]} 55. c5 {[%emt 0:00:41]} f5 {[%emt 0:01:05]} 56. Rb7 {[%emt 0:00:19]} Re8 {[%emt 0:01:57]} 57. Bc4 {[%emt 0:02:08]} f4 {[%emt 0:01:30]} 58. Ra7 {[%emt 0:00:51]} f3 {[%emt 0:00:56]} 59. Ra1 {[%emt 0:00:03]} Bh3 {[%emt 0:00:34]} 60. b6 {[%emt 0:01:06]} f2 {[%emt 0:00:21]} 61. Kb4 {[%emt 0:02:11]} Bg2 {[%emt 0:00:36]} 62. Bf1 {[%emt 0:00:36]} Bd5 {[%emt 0:00:29]} 63. Bb5 {[%emt 0:00:17]} Rf8 {[%emt 0:00:21]} 64. Rc1 {[%emt 0:01:17]} Rb8 {[%emt 0:00:52]} 65. Rf1 {[%emt 0:00:34]} Rf8 {[%emt 0:00:17]} 66. c6 {[%emt 0:00:36]} Kd6 {[%emt 0:00:41]} 67. Rd1 {[%emt 0:00:49]} Rf4+ {[%emt 0:00:30]} 68. Ka5 {[%emt 0:00:06]} Kc5 {[%emt 0:00:31]} 69. Rxd5+ {[%emt 0:00:46]} Kxd5 {[%emt 0:00:08]} 70. b7 {[%emt 0:00:23]} f1=Q {[%emt 0:00:55]} 71. Bxf1 {[%emt 0:00:08]} Rxf1 {[%emt 0:00:07]} 72. c7 {[%emt 0:00:14]} 1-0

[Event "1st Barreau de Paris 2019"]
[Site "Paris"]
[Date "2019.12.20"]
[Round "9.5"]
[White "Sochacki, Wojtek"]
[Black "Maurizzi, Marc Andria"]
[Result "0-1"]
[ECO "A05"]
[WhiteElo "2320"]
[BlackElo "2404"]
[Annotator "NA"]
[PlyCount "80"]
[EventDate "2019.12.16"]
[EventType "tourn"]
[EventCountry "FRA"]
[SourceTitle "playchess.com"]
[Source "ChessBase"]
[SourceQuality "1"]
[TimeControl "5400+30"]

{[%evp 8,43,34,14,32767,32767,32767,9,16,-47,-56,-53,-32,-60,-53,-50,-48,-40,-41,-44,-16,-47,-16,-47,-39,-50,-39,-33,-13,-11,-13,-25,0,0,0,-28,-28,-54]} 1. Nf3 {[%emt 0:00:00]} Nf6 {[%emt 0:00:00]} 2. g3 {[%emt 0:00:00]} b6 {[%emt 0:00:00]} 3. Bg2 {[%emt 0:00:00]} Bb7 {[%emt 0:00:00]} 4. O-O {[%emt 0:00:16]} g6 {[%emt 0:00:00]} 5. d3 {[%emt 0:05:39]} d6 {[%emt 0:00:09]} 6. e4 {[%emt 0:00:33]} c5 {[%emt 0:00:06]} 7. Nc3 {[%emt 0:07:32]} Bg7 {[%emt 0:01:05] A05: Réti Opening: 1 Nf3 Nf6} 8. d4 $146 {[%emt 0:00:35]} ({Predecessor:} 8. Nh4 Nc6 9. f4 e6 10. a4 Qd7 11. g4 O-O-O 12. h3 Kb8 13. Nb5 Ne8 14. c3 Nc7 15. Be3 {½-½ (41) Teterev,V (2487)-Rozum,I (2606) Minsk 2017}) 8... Nxe4 {[%emt 0:13:41]} 9. Nxe4 {[%emt 0:00:15]} Bxe4 {[%emt 0:00:01]} 10. d5 {[%emt 0:00:14]} O-O {[%emt 0:01:13]} 11. Re1 {[%emt 0:00:05]} Bxf3 {[%emt 0:00:14]} 12. Qxf3 {[%emt 0:00:14]} Nd7 {[%emt 0:00:30]} 13. a4 {[%emt 0:01:37]} Bf6 {[%emt 0:04:24]} 14. Ra3 {[%emt 0:01:51]} a6 {[%emt 0:03:47]} 15. Bf1 {[%emt 0:00:12]} Ne5 {[%emt 0:04:19]} 16. Qe4 {[%emt 0:03:08]} Qc7 {[%emt 0:01:00]} 17. f4 {[%emt 0:01:56]} Nd7 {[%emt 0:00:09]} 18. g4 {[%emt 0:02:04]} Rfe8 {[%emt 0:07:17]} 19. Kh1 {[%emt 0:23:02]} e6 {[%emt 0:14:21]} 20. dxe6 {[%emt 0:01:19]} fxe6 {[%emt 0:00:29]} 21. c4 {[%emt 0:01:45]} Bd4 {[%emt 0:06:48]} 22. Bg2 $15 {[%emt 0:03:13]} d5 {[%emt 0:07:11]} 23. Qe2 {[%emt 0:00:52]} Nf6 {[%emt 0:00:37]} 24. Be3 {[%emt 0:21:09]} Rad8 {[%emt 0:06:06]} 25. Bxd4 {[%emt 0:08:48]} cxd4 {[%emt 0:00:06]} 26. cxd5 {[%emt 0:00:26]} exd5 {[%emt 0:02:12]} 27. Qf1 {[%emt 0:00:07]} Rxe1 {[%emt 0:02:57]} 28. Qxe1 {[%emt 0:00:03]} Re8 {[%emt 0:00:45]} 29. Qd2 {[%emt 0:00:10]} Ne4 {[%emt 0:00:25]} 30. Bxe4 {[%emt 0:00:24]} Rxe4 {[%emt 0:00:13]} 31. Rf3 {[%emt 0:00:10]} Qe7 {[%emt 0:02:25]} 32. Kg1 {[%emt 0:00:35]} Qe6 {[%emt 0:05:42]} 33. h3 {[%emt 0:02:54]} Re3 {[%emt 0:01:06]} 34. Kf2 {[%emt 0:00:30]} Qe4 {[%emt 0:02:12]} 35. Qd1 {[%emt 0:01:24]} Kf7 {[%emt 0:01:23]} 36. Qh1 {[%emt 0:00:06]} Re2+ {[%emt 0:00:07]} 37. Kg3 {[%emt 0:00:05]} Re3 {[%emt 0:00:28]} 38. Qf1 {[%emt 0:00:38]} d3 {[%emt 0:01:26]} 39. Rxe3 {[%emt 0:00:14]} Qxe3+ {[%emt 0:00:06]} 40. Kh4 {[%emt 0:00:05]} d2 {[%emt 0:00:31]} 0-1